bitfinex-derivatives/quotes_BTCF0:USTF0_20241120
["timestamp","ask_amount","ask_price","bid_price","bid_amount"]
[1732133421696,0.02271525,94095.0,94094.0,0.053082]
[1732133422691,0.02271525,94095.0,94091.0,0.053084]
[1732133423013,0.053083,94093.0,94091.0,0.053084]
[1732133423379,0.10198788,94092.0,94091.0,0.053084]
[1732133423990,0.3608,94094.0,94093.0,0.053083]
[1732133424297,0.3608,94094.0,94093.0,0.24035658]
[1732133424505,0.3608,94094.0,94093.0,0.053083]
[1732133425388,0.3608,94094.0,94088.0,0.24927478]
[1732133425389,0.053084,94091.0,94089.0,0.24927478]
[1732133425685,0.3608,94094.0,94088.0,0.24927478]
[1732133425686,0.10198788,94092.0,94088.0,0.24927478]
[1732133425902,0.0508,94091.0,94086.0,0.24927478]
[1732133426087,0.0508,94091.0,94078.0,0.31159348]
[1732133426088,0.053087,94085.0,94084.0,0.24927478]
[1732133426395,0.46278788,94085.0,94084.0,0.25002572]
[1732133426602,0.51587488,94085.0,94084.0,0.25002572]
[1732133426802,0.46278788,94085.0,94084.0,0.053088]
[1732133426992,0.3608,94085.0,94084.0,0.053088]
[1732133427390,0.053083,94093.0,94084.0,0.053088]
[1732133427596,0.02271525,94095.0,94084.0,0.053088]
[1732133427597,0.02271525,94095.0,94094.0,0.053082]
[1732133427898,0.02271525,94095.0,94094.0,0.30309395]
[1732133428396,0.02271525,94095.0,94094.0,0.06966903]
[1732133428890,0.02271525,94095.0,94094.0,0.31970893]
[1732133429594,0.00159475,94095.0,94094.0,0.3031219]
[1732133429796,0.00159475,94095.0,94094.0,0.31970913]
[1732133430990,0.00159475,94095.0,94094.0,0.06966923]
[1732133431589,0.00159475,94095.0,94094.0,0.31980607]
[1732133431798,0.00159475,94095.0,94094.0,0.38850923]
[1732133432003,0.053072,94112.0,94102.0,0.053078]
[1732133432304,0.02043586,94106.0,94102.0,0.30317077]
[1732133432502,0.02043586,94106.0,94102.0,0.30314255]
[1732133433196,0.02043586,94106.0,94102.0,0.053078]
[1732133433396,0.02043586,94106.0,94102.0,0.3031498]
[1732133433603,0.02043586,94106.0,94102.0,0.053078]
[1732133436396,0.053076,94105.0,94102.0,0.053078]
[1732133436993,0.02043586,94106.0,94102.0,0.053078]
[1732133437601,0.3608,94114.0,94102.0,0.053078]
[1732133437907,0.3608,94114.0,94112.0,0.18744129]
[1732133438117,0.3608,94114.0,94113.0,0.28851229]
[1732133438404,0.3608,94114.0,94113.0,0.35100609]
[1732133438608,0.3608,94114.0,94113.0,0.101071]
[1732133438994,0.3608,94114.0,94113.0,0.35100609]
[1732133439600,0.3608,94114.0,94113.0,0.101071]
[1732133440612,0.3608,94114.0,94113.0,0.12123597]
[1732133440811,0.053072,94112.0,94111.0,0.24993509]
[1732133441011,0.46278788,94114.0,94106.0,0.24993509]
[1732133441012,0.053073,94111.0,94106.0,0.24993509]
[1732133441203,0.053073,94111.0,94110.0,0.053073]
[1732133441712,0.053073,94111.0,94105.0,0.18721084]
[1732133441713,0.053075,94107.0,94106.0,0.053075]
[1732133442999,0.46278788,94114.0,94105.0,0.18721084]
[1732133443312,0.413875,94106.0,94105.0,0.18721084]
[1732133443900,0.053076,94105.0,94104.0,0.24028716]
[1732133444510,0.053076,94105.0,94104.0,0.2402989]
[1732133445014,0.053076,94105.0,94104.0,0.053076]
[1732133445212,0.3608,94106.0,94105.0,0.053076]
[1732133445397,0.3608,94106.0,94105.0,0.06966163]
[1732133445600,0.3608,94106.0,94105.0,0.2568866]
[1732133445805,0.3608,94106.0,94105.0,0.06966163]
[1732133446200,0.3608,94106.0,94105.0,0.06966162]
[1732133447805,0.413875,94106.0,94105.0,0.06966162]
[1732133448519,0.413875,94106.0,94105.0,0.06966163]
[1732133450107,0.413875,94106.0,94105.0,0.01658563]
[1732133450303,0.413875,94106.0,94102.0,0.053078]
[1732133450304,0.3608,94106.0,94102.0,0.053078]
[1732133450504,0.053077,94103.0,94102.0,0.053078]
[1732133453524,0.3608,94106.0,94105.0,0.053076]
[1732133453719,0.3608,94106.0,94105.0,0.24033157]
[1732133453911,0.3608,94106.0,94105.0,0.053076]
[1732133454620,0.38228792,94114.0,94113.0,0.053071]
[1732133454816,0.3608,94114.0,94113.0,0.053071]
[1732133455423,0.413871,94114.0,94113.0,0.053071]
[1732133455615,0.3608,94114.0,94109.0,0.24993509]
[1732133455819,0.053073,94110.0,94109.0,0.053073]
[1732133456220,0.46382789,94114.0,94107.0,0.24993509]
[1732133456422,0.46382789,94114.0,94113.0,0.053071]
[1732133456423,0.51585888,94114.0,94113.0,0.053071]
[1732133456620,0.053074,94109.0,94108.0,0.30300909]
[1732133456920,0.053074,94109.0,94101.0,0.31260414]
[1732133456921,0.053074,94108.0,94101.0,0.31260414]
[1732133457119,0.053072,94113.0,94112.0,0.053071]
[1732133459320,0.47160001,94114.0,94109.0,0.18723584]
[1732133459321,0.053073,94110.0,94109.0,0.18723584]
[1732133459515,0.053073,94110.0,94109.0,0.24030984]
[1732133460030,0.053073,94110.0,94109.0,0.18723584]
[1732133460229,0.053073,94110.0,94106.0,0.053075]
[1732133460432,0.053075,94107.0,94106.0,0.053075]
[1732133462225,0.053075,94107.0,94106.0,0.3027287]
[1732133462431,0.07403405,94107.0,94106.0,0.3027287]
[1732133463423,0.07403405,94107.0,94106.0,0.053075]
[1732133465429,0.053075,94107.0,94106.0,0.053075]
[1732133466433,0.053075,94107.0,94106.0,0.0696608]
[1732133467231,0.053075,94107.0,94106.0,0.31946373]
[1732133468131,0.053075,94107.0,94106.0,0.31946375]
[1732133468535,0.053075,94107.0,94106.0,0.053075]
[1732133469835,0.053075,94107.0,94106.0,0.30298741]
[1732133470424,0.053075,94107.0,94106.0,0.053075]
[1732133471636,0.053075,94107.0,94106.0,0.06966082]
[1732133472123,0.053075,94107.0,94106.0,0.31965922]
[1732133472942,0.053075,94107.0,94106.0,0.06966082]
[1732133475931,0.053075,94107.0,94106.0,0.06966087]
[1732133476138,0.053075,94107.0,94106.0,0.053075]
[1732133476335,0.053075,94107.0,94106.0,0.06966087]
[1732133476634,0.053075,94107.0,94106.0,0.053075]
[1732133478740,0.053075,94107.0,94106.0,0.05669328]
[1732133479036,0.053075,94107.0,94106.0,0.053075]
[1732133479223,0.053075,94107.0,94106.0,0.05669325]
[1732133480128,0.053075,94107.0,94106.0,0.30667768]
[1732133480329,0.053075,94107.0,94106.0,0.00361825]
[1732133480738,0.053075,94107.0,94099.0,0.18753237]
[1732133480944,0.3608,94100.0,94095.0,0.25000263]
[1732133481239,0.3608,94100.0,94094.0,0.053082]
[1732133481240,0.053082,94095.0,94094.0,0.053082]
[1732133481439,0.053082,94095.0,94094.0,0.30308463]
[1732133481641,0.10956,94099.0,94098.0,0.05308]
[1732133481835,0.10956,94099.0,94089.0,0.101285]
[1732133481836,0.3608,94100.0,94099.0,0.053079]
[1732133482547,0.3608,94109.0,94108.0,0.053074]
[1732133483033,0.3608,94109.0,94108.0,0.30296796]
[1732133483941,0.3608,94109.0,94108.0,0.053074]
[1732133484941,0.3608,94109.0,94100.0,0.0459]
[1732133485143,0.053078,94102.0,94101.0,0.053077]
[1732133486840,0.053077,94104.0,94103.0,0.053076]
[1732133491737,0.053081,94099.0,94098.0,0.05308]
[1732133491944,0.15417335,94099.0,94098.0,0.05308]
[1732133492138,0.51497335,94099.0,94098.0,0.05308]
[1732133492340,0.51497335,94099.0,94084.0,0.3608]
[1732133492341,0.053086,94087.0,94086.0,0.31260414]
[1732133492641,0.053092,94076.0,94075.0,0.0015941]
[1732133492949,0.413892,94076.0,94075.0,0.0015941]
[1732133493533,0.413892,94076.0,94064.0,0.02026974]
[1732133493534,0.053096,94071.0,94070.0,0.053095]
[1732133493738,0.4704,94076.0,94064.0,0.02026974]
[1732133493739,0.3608,94073.0,94064.0,0.02026974]
[1732133493935,0.3608,94073.0,94072.0,0.053095]
[1732133494343,0.053091,94078.0,94077.0,0.053092]
[1732133498753,0.02088942,94079.0,94078.0,0.053091]
[1732133498952,0.053091,94080.0,94071.0,0.01659118]
[1732133499154,0.053091,94080.0,94079.0,0.053091]
[1732133500354,0.07375676,94080.0,94079.0,0.053091]
[1732133500548,0.053099,94065.0,94064.0,0.053099]
[1732133500743,0.053099,94065.0,94064.0,0.01659133]
[1732133501243,0.053099,94065.0,94064.0,0.053099]
[1732133502340,0.053099,94065.0,94057.0,0.01659362]
[1732133502544,0.10936,94068.0,94058.0,0.00159451]
[1732133502545,0.51499435,94059.0,94058.0,0.00159451]
[1732133502739,0.51499435,94059.0,94058.0,0.05469651]
[1732133502948,0.413902,94059.0,94058.0,0.05469651]
[1732133503150,0.053099,94065.0,94064.0,0.053099]
[1732133503350,0.07421518,94065.0,94064.0,0.053099]
[1732133504165,0.053102,94059.0,94058.0,0.05469651]
[1732133504341,0.51499435,94059.0,94058.0,0.05469651]
[1732133504538,0.15419435,94059.0,94058.0,0.05469651]
[1732133504741,0.51499435,94059.0,94058.0,0.05469651]
[1732133505347,0.51499435,94059.0,94058.0,0.00159451]
[1732133506050,0.87579435,94059.0,94058.0,0.00159451]
[1732133508751,0.053106,94051.0,94050.0,0.053107]
[1732133508953,0.413906,94051.0,94050.0,0.053107]
[1732133509152,0.51499835,94051.0,94050.0,0.053107]
[1732133509356,0.05311,94046.0,94045.0,0.05311]
[1732133510147,0.053112,94042.0,94041.0,0.053112]
[1732133510351,0.15420435,94042.0,94041.0,0.053112]
[1732133511256,0.10109235,94042.0,94041.0,0.053112]
[1732133511843,0.053109,94046.0,94045.0,0.05311]
[1732133513354,0.10109235,94048.0,94047.0,0.053109]
[1732133513862,0.15420035,94048.0,94047.0,0.053109]
[1732133515756,0.15420035,94048.0,94047.0,0.18938454]
[1732133516958,0.15420035,94048.0,94047.0,0.13627554]
[1732133520458,0.053108,94048.0,94047.0,0.13627554]
[1732133524150,0.053108,94048.0,94047.0,0.18938454]
[1732133524462,0.38255989,94051.0,94050.0,0.053107]
[1732133524667,0.43462588,94051.0,94050.0,0.053107]
[1732133524853,0.38151988,94051.0,94050.0,0.18938254]
[1732133525865,0.43462588,94051.0,94050.0,0.18938254]
[1732133526171,0.413906,94051.0,94050.0,0.18938254]
[1732133527665,0.413906,94051.0,94050.0,0.13627554]
[1732133529571,0.053117,94032.0,94031.0,0.0493]
[1732133529769,0.51500935,94032.0,94031.0,0.0493]
[1732133530670,0.51500935,94032.0,94031.0,0.102418]
[1732133531966,0.51500935,94032.0,94031.0,0.120418]
[1732133532563,0.51500935,94032.0,94031.0,0.111418]
[1732133532759,0.51500935,94032.0,94031.0,0.120418]
[1732133534773,0.53519472,94032.0,94031.0,0.120418]
[1732133536073,0.53519472,94032.0,94031.0,0.018]
[1732133536863,0.53519472,94032.0,94031.0,0.071118]
[1732133537360,0.53519472,94032.0,94031.0,0.018]
[1732133537672,0.053121,94025.0,94024.0,0.00012271]
[1732133537973,0.523081,94025.0,94024.0,0.00012271]
[1732133538167,0.57472869,94025.0,94024.0,0.00012271]
[1732133538471,0.523081,94025.0,94024.0,9.01e-06]
[1732133538672,0.68704806,94025.0,94024.0,9.01e-06]
[1732133539076,0.75471512,94025.0,94024.0,9.01e-06]
[1732133539274,0.06766706,94012.0,94000.0,0.28806735]
[1732133539574,0.06766706,94012.0,94000.0,0.1]
[1732133539575,0.48160206,94001.0,94000.0,0.1]
[1732133540375,0.48172201,94001.0,94000.0,0.1]
[1732133540578,0.48172201,94001.0,94000.0,0.153135]
[1732133540758,0.5153846,94001.0,94000.0,0.153135]
[1732133541363,0.5153846,94001.0,94000.0,0.1]
[1732133541785,0.6245446,94001.0,94000.0,0.1]
[1732133542971,0.6255446,94001.0,94000.0,0.1]
[1732133543474,0.5163846,94001.0,94000.0,0.1]
[1732133543663,0.6255446,94001.0,94000.0,0.153135]
[1732133543866,0.36191995,94001.0,94000.0,0.153135]
[1732133544772,0.3608,94019.0,94006.0,0.053132]
[1732133544964,0.3608,94019.0,94018.0,0.053125]
[1732133545164,0.46212965,94019.0,94018.0,0.053125]
[1732133545966,0.51625365,94019.0,94018.0,0.053125]
[1732133546165,0.053128,94014.0,94013.0,0.053128]
[1732133546370,0.15445765,94014.0,94013.0,0.053128]
[1732133547382,0.10132965,94014.0,94013.0,0.053128]
[1732133548574,0.10132965,94014.0,94007.0,0.0491]
[1732133548575,0.413925,94019.0,94018.0,0.053125]
[1732133548778,0.3608,94019.0,94018.0,0.053125]
[1732133549169,0.3608,94019.0,94007.0,0.0491]
[1732133549372,0.053128,94014.0,94013.0,0.053126]
[1732133549974,0.3608,94018.0,94008.0,0.05313]
[1732133549975,0.053131,94009.0,94008.0,0.05313]
[1732133550278,0.413931,94009.0,94008.0,0.05313]
[1732133553276,0.414931,94009.0,94008.0,0.05313]
[1732133556281,0.3618,94009.0,94008.0,0.05313]
[1732133556788,0.41493,94009.0,94008.0,0.05313]
[1732133559686,0.3618,94009.0,94008.0,0.05313]
[1732133560379,0.3618,94009.0,94008.0,0.06973288]
[1732133561191,0.41493,94009.0,94008.0,0.06973288]
[1732133561397,0.41493,94009.0,94008.0,0.05313]
[1732133561600,0.41493,94009.0,94008.0,0.07170126]
[1732133562277,0.41493,94009.0,94008.0,0.05509838]
[1732133564289,0.41493,94009.0,94008.0,0.12509838]
[1732133564488,0.41493,94009.0,94008.0,0.07196838]
[1732133565184,0.41493,94009.0,94008.0,0.12509938]
[1732133565583,0.43597933,94009.0,94008.0,0.12509938]
[1732133567583,0.43597933,94009.0,94008.0,0.3753986]
[1732133568795,0.43597933,94009.0,94008.0,0.12509938]
[1732133569886,0.43597933,94009.0,94008.0,0.3753986]
[1732133570595,0.43597933,94009.0,94008.0,0.37615275]
[1732133570790,0.43597933,94009.0,94008.0,0.32302175]
[1732133571592,0.43597933,94009.0,94008.0,0.32306356]
[1732133572197,0.43597933,94009.0,94008.0,0.07196838]
[1732133572885,0.43497933,94009.0,94008.0,0.07196838]
[1732133574693,0.50265803,94009.0,94008.0,0.07196838]
[1732133582888,0.50265803,94009.0,94008.0,0.0739415]
[1732133583500,0.053135,94001.0,94000.0,0.1]
[1732133583707,0.6581724,94001.0,94000.0,0.1]
[1732133584092,0.5904937,94001.0,94000.0,0.1]
[1732133584801,0.6581724,94001.0,94000.0,0.1]
[1732133585588,0.6581724,94001.0,94000.0,0.10197504]
[1732133587305,0.6581724,94001.0,94000.0,0.10395153]
[1732133588396,1.0518724,94001.0,94000.0,0.10395153]
[1732133588700,1.0518724,94001.0,93980.0,0.0482]
[1732133588701,0.053146,93981.0,93980.0,0.0482]
[1732133588910,0.4284787,93981.0,93979.0,0.0962]
[1732133589089,0.053146,93980.0,93979.0,0.0962]
[1732133589689,0.0676787,93981.0,93980.0,0.053146]
[1732133589892,0.3608,93989.0,93988.0,0.053142]
[1732133590101,0.413941,93989.0,93988.0,0.053142]
[1732133590300,0.3608,93989.0,93988.0,0.053142]
[1732133590707,0.3608,93989.0,93985.0,0.18841599]
[1732133590708,0.053143,93986.0,93985.0,0.18841599]
[1732133590896,0.053144,93985.0,93984.0,0.18841599]
[1732133591207,0.053144,93985.0,93984.0,0.053144]
[1732133591399,0.0676787,93986.0,93983.0,0.18841599]
[1732133591400,0.053144,93984.0,93983.0,0.18841599]
[1732133591596,0.053144,93985.0,93983.0,0.18841067]
[1732133591903,0.053144,93984.0,93983.0,0.18841067]
[1732133592106,0.053145,93983.0,93982.0,0.18841067]
[1732133592307,0.1208237,93983.0,93982.0,0.18841067]
[1732133592503,0.053145,93982.0,93981.0,0.24155667]
[1732133592705,0.053145,93982.0,93981.0,0.18841067]
[1732133593099,0.5145237,93982.0,93972.0,0.18833957]
[1732133593297,0.3608,93973.0,93967.0,0.18833957]
[1732133593602,0.053154,93967.0,93963.0,0.053156]
[1732133593798,0.053154,93967.0,93961.0,0.18833957]
[1732133594199,0.053154,93967.0,93962.0,0.18833957]
[1732133594400,0.053154,93967.0,93963.0,0.053156]
[1732133594604,0.053154,93967.0,93964.0,0.053155]
[1732133595191,0.4291987,93968.0,93962.0,0.18833957]
[1732133595398,0.4284787,93968.0,93967.0,0.053154]
[1732133596103,0.4816317,93968.0,93967.0,0.053154]
[1732133597298,0.4284787,93968.0,93967.0,0.053154]
[1732133597502,0.4284787,93968.0,93958.0,0.23533957]
[1732133597802,0.4284787,93968.0,93961.0,0.18833957]
[1732133597803,0.053154,93967.0,93961.0,0.18833957]
[1732133598107,0.053154,93967.0,93962.0,0.18833957]
[1732133598407,0.053154,93967.0,93959.0,0.24149757]
[1732133598702,0.053154,93967.0,93959.0,0.053158]
[1732133599208,0.053154,93967.0,93958.0,0.047]
[1732133599412,0.053154,93967.0,93960.0,0.053158]
[1732133600005,0.053154,93967.0,93956.0,0.24149957]
[1732133600206,0.053161,93954.0,93953.0,0.18833957]
[1732133600401,0.053161,93954.0,93951.0,0.053162]
[1732133600402,0.053162,93952.0,93951.0,0.053162]
[1732133600595,0.15459938,93952.0,93951.0,0.053162]
[1732133600996,0.15416727,93952.0,93951.0,0.053162]
[1732133601197,0.15426614,93952.0,93951.0,0.053162]
[1732133601603,0.10153625,93952.0,93951.0,0.053162]
[1732133602105,9.887e-05,93952.0,93951.0,0.053162]
[1732133602701,0.053164,93951.0,93946.0,0.18833957]
[1732133602906,0.053168,93942.0,93941.0,0.0965]
[1732133603105,0.51540538,93942.0,93941.0,0.0965]
[1732133603494,0.053172,93934.0,93933.0,0.053173]
[1732133603702,0.413972,93934.0,93933.0,0.053173]
[1732133604008,0.053175,93929.0,93927.0,0.053176]
[1732133604306,0.053175,93929.0,93923.0,7.639e-05]
[1732133604307,0.10143738,93924.0,93923.0,7.639e-05]
[1732133604508,0.46223738,93924.0,93923.0,7.639e-05]
[1732133604721,0.3608,93934.0,93923.0,0.05325539]
[1732133604895,0.3608,93934.0,93933.0,0.062173]
[1732133605304,0.3608,93944.0,93943.0,0.053167]
[1732133605699,0.413967,93944.0,93943.0,0.053167]
[1732133606699,0.3608,93944.0,93937.0,0.02061471]
[1732133606999,0.3608,93944.0,93927.0,0.1086]
[1732133607000,0.05317,93939.0,93938.0,0.049]
[1732133607212,0.05317,93939.0,93923.0,0.18841596]
[1732133607213,0.053178,93924.0,93923.0,7.639e-05]
[1732133609812,0.15461538,93924.0,93923.0,7.639e-05]
[1732133619317,0.26325538,93924.0,93923.0,7.639e-05]
[1732133621717,0.15462338,93911.0,93910.0,0.092]
[1732133621917,0.51542338,93911.0,93910.0,0.092]
[1732133622519,0.51542338,93911.0,93910.0,0.145186]
[1732133626231,0.053186,93911.0,93910.0,0.145186]
[1732133626516,0.053183,93916.0,93915.0,0.053183]
[1732133627313,0.053183,93916.0,93910.0,0.0472]
[1732133627314,0.053186,93911.0,93910.0,0.100386]
[1732133629021,0.053186,93910.0,93894.0,0.0471]
[1732133629221,0.15462838,93901.0,93900.0,0.1]
[1732133629526,0.51542838,93901.0,93900.0,0.1]
[1732133630423,0.87622838,93901.0,93900.0,0.1]
[1732133633824,0.87622838,93901.0,93900.0,0.11662479]
[1732133636723,0.89681252,93901.0,93900.0,0.11662479]
[1732133637524,0.89681252,93901.0,93900.0,0.1]
[1732133637829,0.89681252,93901.0,93900.0,0.11662487]
[1732133639822,0.89681252,93901.0,93900.0,0.1]
[1732133641124,0.89681252,93901.0,93900.0,0.0258]
[1732133641323,0.89681252,93901.0,93889.0,0.00011819]
[1732133641324,0.053197,93890.0,93889.0,0.00011819]
[1732133641524,0.72519176,93890.0,93889.0,0.00011819]
[1732133642640,0.72519176,93890.0,93889.0,0.00911819]
[1732133643123,0.62375438,93890.0,93889.0,0.00911819]
[1732133644433,0.62375438,93890.0,93889.0,0.00011819]
[1732133644632,0.64408028,93890.0,93889.0,0.00911819]
[1732133645333,0.64408028,93890.0,93889.0,0.00011819]
[1732133645738,0.64446164,93890.0,93889.0,0.00011819]
[1732133646829,0.64446164,93890.0,93875.0,0.06903995]
[1732133646830,0.69270202,93890.0,93875.0,0.0483]
[1732133647028,0.51544238,93876.0,93875.0,0.0483]
[1732133647227,0.51544238,93876.0,93875.0,0.101506]
[1732133648073,0.51544238,93876.0,93875.0,0.110506]
[1732133648559,0.51544238,93876.0,93875.0,0.0663]
[1732133649142,0.51544238,93876.0,93875.0,0.0573]
[1732133649346,0.51544238,93876.0,93875.0,0.0663]
[1732133650060,9.158e-05,93875.0,93857.0,0.02115149]
[1732133650356,9.158e-05,93875.0,93854.0,0.05331057]
[1732133650357,0.053217,93855.0,93854.0,0.05331057]
[1732133650557,0.053217,93855.0,93854.0,9.257e-05]
[1732133651058,0.053217,93855.0,93854.0,0.01672311]
[1732133651562,0.36172,93858.0,93857.0,0.053216]
[1732133651764,0.3608,93858.0,93857.0,0.07884654]
[1732133651960,0.3608,93858.0,93857.0,0.071216]
[1732133652459,0.3608,93858.0,93857.0,0.062216]
[1732133652652,0.414016,93858.0,93857.0,0.062216]
[1732133653257,0.414016,93858.0,93857.0,0.053216]
[1732133654058,0.414016,93858.0,93854.0,0.01809257]
[1732133654059,0.053217,93855.0,93854.0,0.01809257]
[1732133654252,0.161177,93855.0,93854.0,0.00909257]
[1732133654859,0.161177,93855.0,93854.0,9.257e-05]
[1732133655940,0.162177,93855.0,93854.0,9.257e-05]
[1732133656347,0.18274523,93855.0,93854.0,9.257e-05]
[1732133657641,0.162217,93855.0,93854.0,0.00370999]
[1732133658141,0.054217,93855.0,93854.0,0.00370999]
[1732133658445,0.054217,93855.0,93854.0,0.05692799]
[1732133658939,0.001,93855.0,93854.0,0.05692799]
[1732133659328,0.001,93855.0,93854.0,0.06994282]
[1732133659936,0.054217,93855.0,93854.0,9.257e-05]
[1732133661831,0.162217,93855.0,93854.0,9.257e-05]
[1732133662534,0.054217,93855.0,93854.0,9.257e-05]
[1732133662731,0.054217,93855.0,93854.0,0.05331057]
[1732133664737,0.054217,93855.0,93854.0,9.257e-05]
[1732133665047,0.10143738,93864.0,93854.0,9.257e-05]
[1732133665048,0.0049,93876.0,93854.0,0.31973257]
[1732133665249,0.0049,93886.0,93874.0,0.053206]
[1732133665541,0.053205,93877.0,93874.0,0.053206]
[1732133665744,0.00038136,93890.0,93874.0,0.47420338]
[1732133665933,0.05357836,93890.0,93889.0,0.053198]
[1732133666944,0.05368382,93890.0,93889.0,0.053198]
[1732133667148,0.00048682,93890.0,93889.0,0.053198]
[1732133667953,0.05368382,93890.0,93889.0,0.053198]
[1732133668645,0.05468382,93890.0,93889.0,0.053198]
[1732133669452,0.00148682,93890.0,93889.0,0.053198]
[1732133669661,0.0004844,93892.0,93891.0,0.053197]
[1732133669840,0.00060396,93894.0,93893.0,0.053196]
[1732133670155,0.94473,93902.0,93900.0,0.053192]
[1732133670335,0.94565,93902.0,93900.0,0.053192]
[1732133670540,0.05444653,93901.0,93900.0,0.053192]
[1732133670738,0.05444653,93901.0,93899.0,0.18807576]
[1732133670739,0.053192,93900.0,93899.0,0.18807576]
[1732133670943,0.053192,93900.0,93899.0,0.053192]
[1732133671352,0.00135194,93901.0,93896.0,0.28951314]
[1732133671655,0.00135194,93901.0,93900.0,0.053192]
[1732133672148,0.00135194,93901.0,93900.0,0.372672]
[1732133672946,0.00235194,93901.0,93900.0,0.39291043]
[1732133673143,0.00235194,93901.0,93900.0,0.07343043]
[1732133673351,0.00235194,93901.0,93900.0,0.39291043]
[1732133675849,0.00139962,93906.0,93901.0,0.47410838]
[1732133676055,0.00081809,93919.0,93914.0,0.10143738]
[1732133676353,0.00333365,93924.0,93920.0,0.05318]
[1732133676552,0.00333365,93924.0,93920.0,0.15461738]
[1732133676741,0.00333365,93924.0,93920.0,0.47401738]
[1732133677151,0.00333365,93924.0,93920.0,1.97401738]
[1732133679044,0.00372973,93935.0,93921.0,0.31949978]
[1732133679246,0.00372973,93935.0,93929.0,0.15461238]
[1732133679456,0.00372973,93935.0,93929.0,0.26225238]
[1732133679653,0.00372973,93935.0,93929.0,0.58165238]
[1732133680858,0.00372973,93935.0,93932.0,0.053174]
[1732133681062,0.00372973,93935.0,93932.0,0.3]
[1732133681353,0.00369813,93941.0,93933.0,0.31936]
[1732133681541,0.00369813,93941.0,93940.0,0.51540638]
[1732133682047,0.00369813,93941.0,93940.0,1.13476638]
[1732133682761,0.00469813,93941.0,93940.0,2.63476638]
[1732133683460,0.00393016,93953.0,93940.0,2.65540455]
[1732133683663,0.00393016,93953.0,93947.0,0.053165]
[1732133683955,0.00393016,93953.0,93947.0,0.58156238]
[1732133684956,0.00393016,93953.0,93947.0,0.58152238]
[1732133685346,0.00393016,93953.0,93947.0,0.59052238]
[1732133685943,0.00393016,93953.0,93947.0,0.58152238]
[1732133686143,0.00393016,93953.0,93947.0,0.59052238]
[1732133686347,0.00643621,93948.0,93947.0,0.59952238]
[1732133689658,0.00543621,93948.0,93947.0,0.59052238]
[1732133689958,0.16103859,93948.0,93947.0,0.018]
[1732133690549,0.18208408,93948.0,93947.0,0.018]
[1732133690744,0.16103859,93948.0,93947.0,0.018]
[1732133691164,0.18131235,93948.0,93947.0,0.018]
[1732133691362,0.18131235,93948.0,93947.0,0.009]
[1732133691560,0.18131235,93948.0,93947.0,0.018]
[1732133692063,0.053172,93934.0,93933.0,0.053173]
[1732133693254,0.00643621,93948.0,93939.0,0.053169]
[1732133693462,0.00643621,93948.0,93938.0,0.3608]
[1732133693763,0.00543621,93948.0,93947.0,0.053165]
[1732133693956,0.00743621,93948.0,93947.0,0.053165]
[1732133694154,0.00743621,93948.0,93947.0,0.372485]
[1732133694662,0.00743621,93948.0,93947.0,0.480085]
[1732133694961,0.05317,93941.0,93938.0,0.02115307]
[1732133695172,0.05317,93939.0,93938.0,0.07432307]
[1732133695463,0.05317,93939.0,93938.0,0.05317]
[1732133695648,0.053172,93935.0,93934.0,0.3608]
[1732133695854,0.053172,93935.0,93934.0,0.413972]
[1732133696063,0.053172,93935.0,93934.0,0.4341899]
[1732133696968,0.001,93939.0,93934.0,0.3810179]
[1732133697162,0.05417,93939.0,93938.0,0.05317]
[1732133697669,0.001,93939.0,93938.0,0.05317]
[1732133697852,0.05417,93939.0,93938.0,0.05317]
[1732133698258,0.001,93939.0,93934.0,0.3810179]
[1732133698456,0.053172,93935.0,93934.0,0.4341899]
[1732133698865,0.003,93939.0,93938.0,0.05317]
[1732133699167,0.002,93939.0,93938.0,0.05317]
[1732133699366,0.05517,93939.0,93938.0,0.05317]
[1732133699859,0.05517,93939.0,93934.0,0.3810179]
[1732133699860,0.053172,93935.0,93934.0,0.3608]
[1732133700270,0.053175,93929.0,93926.0,0.00056]
[1732133700457,0.053176,93927.0,93926.0,0.053177]
[1732133700654,0.053176,93927.0,93926.0,0.07432343]
[1732133702072,0.053178,93925.0,93922.0,0.053179]
[1732133702453,0.053178,93925.0,93921.0,9.978e-05]
[1732133702454,0.15461538,93925.0,93921.0,9.978e-05]
[1732133702654,0.053179,93922.0,93921.0,9.978e-05]
[1732133703160,0.053188,93906.0,93905.0,0.053189]
[1732133703761,0.053193,93898.0,93897.0,0.38189162]
[1732133704153,0.053194,93896.0,93895.0,0.053194]
[1732133704474,9.978e-05,93898.0,93891.0,0.053197]
[1732133704475,0.053197,93892.0,93891.0,0.053197]
[1732133704773,9.978e-05,93898.0,93888.0,7.733e-05]
[1732133704774,0.053198,93889.0,93888.0,7.733e-05]
[1732133704960,0.053198,93889.0,93888.0,0.05327633]
[1732133705167,0.053198,93889.0,93888.0,7.733e-05]
[1732133705769,0.10143738,93893.0,93891.0,0.053197]
[1732133705961,0.053196,93892.0,93891.0,0.053197]
[1732133707058,0.3608,93894.0,93893.0,0.053196]
[1732133707263,0.002,93896.0,93895.0,0.053195]
[1732133707765,0.00190022,93896.0,93895.0,0.372715]
[1732133707960,9.978e-05,93898.0,93897.0,0.053193]
[1732133708196,9.978e-05,93898.0,93897.0,0.15463038]
[1732133708357,0.0098,93919.0,93918.0,0.053182]
[1732133708560,0.053178,93924.0,93913.0,0.10764]
[1732133708968,0.053178,93924.0,93922.0,0.053179]
[1732133709369,0.36144,93925.0,93924.0,0.053178]
[1732133709558,0.3608,93925.0,93924.0,0.053178]
[1732133710876,0.3608,93934.0,93933.0,0.053173]
[1732133711062,0.3608,93934.0,93919.0,0.3608]
[1732133711063,0.10143738,93942.0,93919.0,0.3608]
[1732133711265,0.3608,93939.0,93919.0,0.3608]
[1732133711571,0.51540538,93942.0,93941.0,0.053169]
[1732133711778,0.46223738,93942.0,93928.0,0.3608]
[1732133711974,0.05317,93939.0,93928.0,0.3608]
[1732133712184,0.05317,93939.0,93934.0,0.053172]
[1732133712476,0.05317,93939.0,93936.0,0.053171]
[1732133712982,0.05317,93939.0,93928.0,0.3608]
[1732133712983,0.36344,93942.0,93940.0,0.053169]
[1732133713177,0.3628,93942.0,93940.0,0.053169]
[1732133713474,0.3628,93942.0,93941.0,0.3608]